bitfinex-derivatives/quotes_SOLF0:USTF0_20250207
["timestamp","ask_amount","ask_price","bid_price","bid_amount"]
[1738938833976,0.0368555,201.83,201.79,0.03679544]
[1738938834677,4.9897555,201.83,201.79,0.03679544]
[1738938834877,0.0368555,201.83,201.79,0.03679544]
[1738938837277,0.0368555,201.83,201.8,4.9536]
[1738938837476,0.0368555,201.83,201.79,0.03679544]
[1738938838175,0.0368555,201.83,201.82,4.9531]
[1738938838878,34.2923022,201.93,201.79,0.03679544]
[1738938839078,4.7934,201.94,201.79,34.32909764]
[1738938839275,4.7934,201.94,201.8,1.578]
[1738938839478,34.2923022,201.91,201.8,1.578]
[1738938839880,0.03155371,201.88,201.83,0.0367873]
[1738938840478,34.2923022,201.87,201.83,0.0367873]
[1738938840684,34.2923022,201.84,201.83,0.0367873]
[1738938840978,34.2923022,201.84,201.76,1.6327]
[1738938840979,34.2923022,201.84,201.71,1.578]
[1738938841179,34.2923022,201.79,201.64,35.7797022]
[1738938841382,4.9551,201.74,201.68,4.9565]
[1738938841584,34.2923022,201.75,201.65,1.5803]
[1738938841990,34.2923022,201.75,201.63,41.34402685]
[1738938842183,34.2923022,201.71,201.68,0.03606056]
[1738938842586,0.03505073,201.72,201.68,0.03606056]
[1738938843385,34.32735293,201.72,201.68,0.03606056]
[1738938844186,0.03505073,201.72,201.68,0.03606056]
[1738938845094,0.03505073,201.72,201.7,4.9561]
[1738938845589,0.03505073,201.72,201.68,0.03606056]
[1738938847287,0.03505073,201.72,201.68,4.99236056]
[1738938847491,0.03505073,201.72,201.68,0.03606056]
[1738938847897,4.9524,201.86,201.78,4.9539]
[1738938848089,34.2923022,201.88,201.71,34.2923022]
[1738938848889,34.2923022,201.84,201.69,3.1212]
[1738938849094,0.03494905,201.82,201.77,0.03395866]
[1738938850492,34.2923022,201.8,201.77,0.03395866]
[1738938850689,34.2923022,201.8,201.69,3.1212]
[1738938850887,4.9548,201.75,201.69,3.1212]
[1738938851093,34.2923022,201.76,201.64,1.544]
[1738938851596,4.9558,201.72,201.66,4.957]
[1738938851790,0.03161673,201.72,201.68,0.0379002]
[1738938853195,4.98741673,201.72,201.68,0.0379002]
[1738938854092,0.03161673,201.72,201.68,0.0379002]
[1738938854298,4.9558,201.71,201.68,0.0379002]
[1738938854498,0.03161673,201.72,201.68,0.0379002]
[1738938854994,0.03161673,201.72,201.68,4.9944002]
[1738938855297,0.03161673,201.72,201.68,0.0379002]
[1738938856494,0.03161673,201.72,201.71,4.9558]
[1738938856997,0.03161673,201.72,201.69,3.2067]
[1738938856998,4.9534,201.81,201.76,4.9545]
[1738938857200,1.5063,201.85,201.71,34.2923022]
[1738938857399,34.2923022,201.84,201.7,1.5628]
[1738938858000,1.5063,201.85,201.7,1.5628]
[1738938858204,0.03334682,201.79,201.75,0.03671196]
[1738938858401,0.03334682,201.79,201.76,4.9544]
[1738938859504,0.03334682,201.79,201.75,0.03671196]
[1738938859708,0.03334682,201.79,201.78,4.9541]
[1738938859903,34.2923022,201.9,201.75,34.32901416]
[1738938860106,4.9504,201.93,201.87,4.9517]
[1738938860506,34.2923022,201.94,201.8,3.1669]
[1738938860807,34.2923022,201.9,201.8,3.1669]
[1738938860997,34.2923022,201.94,201.8,3.1669]
[1738938861200,0.03615757,201.87,201.86,4.9521]
[1738938861510,0.03615757,201.87,201.83,0.03748589]
[1738938862105,34.2923022,201.98,201.84,34.2923022]
[1738938862300,4.9495,201.97,201.9,4.9512]
[1738938862602,1.6324,201.99,201.9,4.9512]
[1738938862802,34.2923022,201.98,201.8,230.4592022]
[1738938863009,34.2923022,201.94,201.8,196.1669]
[1738938863204,34.2923022,201.9,201.8,196.1669]
[1738938863404,0.03242358,201.88,201.83,0.03326793]
[1738938864104,4.9526,201.84,201.83,0.03326793]
[1738938864612,39.2447022,201.86,201.83,0.03326793]
[1738938864907,34.2923022,201.86,201.83,0.03326793]
[1738938865313,34.2923022,201.86,201.73,1.5686]
[1738938865512,34.2923022,201.82,201.73,1.5686]
[1738938865708,4.9539,201.79,201.73,6.5238]
[1738938865901,4.9539,201.79,201.65,4.2]
[1738938865902,34.2923022,201.82,201.61,4.2]
[1738938866107,34.2923022,201.82,201.65,3.1193]
[1738938866409,4.9541,201.78,201.73,4.9553]
[1738938866702,0.03631696,201.76,201.75,4.9548]
[1738938867104,34.2923022,201.82,201.67,34.2923022]
[1738938867302,0.0352705,201.78,201.73,0.03475919]
[1738938867708,34.3275727,201.78,201.73,0.03475919]
[1738938868405,34.2923022,201.74,201.6,1.5005]
[1738938868711,34.2923022,201.74,201.6,3.131]
[1738938869211,34.2923022,201.74,201.64,4.9575]
[1738938869408,34.2923022,201.74,201.6,3.131]
[1738938869605,4.9566,201.68,201.67,0.03714505]
[1738938869909,0.03167422,201.71,201.67,0.03714505]
[1738938870306,4.9566,201.68,201.67,0.03714505]
[1738938870510,34.2923022,201.7,201.67,0.03714505]
[1738938870813,0.03167422,201.71,201.67,0.03714505]
[1738938871603,4.98767422,201.71,201.67,0.03714505]
[1738938872308,0.03167422,201.71,201.67,0.03714505]
[1738938872811,34.2923022,201.84,201.67,34.32944725]
[1738938873011,34.2923022,201.8,201.63,34.2923022]
[1738938873404,4.9549,201.75,201.67,4.9568]
[1738938873705,4.9549,201.75,201.6,196.131]
[1738938873706,34.2923022,201.76,201.6,196.131]
[1738938873904,38.4923022,201.8,201.63,4.9576]
[1738938873905,4.9561,201.7,201.63,4.9576]
[1738938874107,4.9561,201.7,201.69,0.0366652]
[1738938874413,34.2923022,201.72,201.67,0.03596644]
[1738938874414,34.32431259,201.72,201.67,0.03596644]
[1738938874608,34.2923022,201.72,201.67,0.03596644]
[1738938874807,34.32996603,201.72,201.67,0.03596644]
[1738938875314,0.03766383,201.72,201.67,0.03596644]
[1738938877311,0.03766383,201.72,201.68,4.9565]
[1738938877708,0.03766383,201.72,201.67,0.03596644]
[1738938877709,0.03766383,201.72,201.7,4.956]
[1738938877913,0.03766383,201.72,201.67,0.03596644]
[1738938878311,0.03766383,201.72,201.71,4.9558]
[1738938878814,4.6302,201.86,201.7,34.2923022]
[1738938879003,4.6302,201.86,201.71,3.1676]
[1738938879710,0.03462463,201.81,201.76,0.037718]
[1738938881712,4.9519,201.88,201.78,34.2923022]
[1738938881912,7.0,201.91,201.78,34.2923022]
[1738938882215,7.0,201.91,201.89,4.9514]
[1738938882414,7.0,201.91,201.82,34.2923022]
[1738938882616,7.0,201.91,201.83,3.2171]
[1738938883018,0.03804607,201.89,201.85,0.03278679]
[1738938883716,0.03804607,201.89,201.88,4.9516]
[1738938884417,0.03804607,201.89,201.85,0.03278679]
[1738938884915,0.03804607,201.89,201.87,4.9519]
[1738938885216,0.03804607,201.89,201.85,0.03278679]
[1738938885415,0.03804607,201.89,201.86,4.9521]
[1738938886211,0.03804607,201.89,201.85,0.03278679]
[1738938886616,4.98944607,201.89,201.85,0.03278679]
[1738938886916,0.03804607,201.89,201.85,0.03278679]
[1738938887116,0.03804607,201.89,201.87,4.9518]
[1738938887317,0.03804607,201.89,201.85,0.03278679]
[1738938887513,7.0,201.91,201.87,34.2923022]
[1738938888117,7.0,201.91,201.85,0.03278679]
[1738938888815,0.03349246,201.9,201.85,0.03278679]
[1738938889522,34.2923022,201.88,201.74,1.5321]
[1738938889722,34.2923022,201.88,201.8,4.9534]
[1738938890015,34.2923022,201.82,201.64,86.49504033]
[1738938890215,34.2923022,201.82,201.71,4.9558]
[1738938890614,4.9548,201.76,201.67,3.0371]
[1738938890917,0.03703146,201.79,201.69,4.9562]
[1738938891109,3.2535,201.81,201.69,4.9562]
[1738938891110,0.03685108,201.74,201.69,4.99154931]
[1738938891312,4.9559,201.71,201.69,0.03534931]
[1738938892929,4.9556,201.72,201.69,0.03534931]
[1738938894119,34.32915328,201.74,201.69,0.03534931]
[1738938894821,4.9561,201.7,201.69,0.03534931]
[1738938895026,4.9561,201.7,201.62,6.5998]
[1738938895027,4.9561,201.7,201.62,4.9578]
[1738938895220,4.9561,201.7,201.57,3.0774]
[1738938895823,34.2923022,201.7,201.57,3.0774]
[1738938896124,0.0320136,201.66,201.61,0.03363344]
[1738938896926,4.9891136,201.66,201.61,0.03363344]
[1738938897127,0.0320136,201.66,201.61,0.03363344]
[1738938898430,0.0320136,201.66,201.61,4.99183344]
[1738938898830,4.9891136,201.66,201.61,0.03363344]
[1738938899026,0.0320136,201.66,201.61,0.03363344]
[1738938899429,0.0320136,201.66,201.65,4.9573]
[1738938899729,0.0320136,201.66,201.61,0.03363344]
[1738938899730,34.2923022,201.79,201.62,34.2923022]
[1738938900028,4.9548,201.76,201.62,34.2923022]
[1738938900224,34.2923022,201.79,201.62,34.2923022]
[1738938900432,34.2923022,201.83,201.66,34.2923022]
[1738938900627,21.21287449,201.85,201.68,21.21287449]
[1738938900829,0.03154382,201.76,201.71,21.2448395]
[1738938901124,4.6518,201.88,201.8,4.9534]
[1738938901427,25.86467449,201.88,201.71,214.21287449]
[1738938901623,21.21287449,201.81,201.67,3.0357]
[1738938901828,21.21287449,201.77,201.67,3.0357]
[1738938902127,21.21287449,201.77,201.7,4.956]
[1738938902326,0.03311979,201.74,201.7,0.0351929]
[1738938902527,21.21287449,201.73,201.7,0.0351929]
[1738938902731,4.9558,201.71,201.7,0.0351929]
[1738938903128,21.21287449,201.73,201.61,3.028]
[1738938903320,21.21287449,201.73,201.55,193.0]
[1738938903526,21.21287449,201.69,201.56,3.1286]
[1738938904328,4.9583,201.61,201.6,0.0362965]
[1738938905234,21.2453462,201.65,201.49,3.1286]
[1738938905730,21.21287449,201.61,201.49,3.1286]
[1738938906326,0.0352742,201.57,201.53,0.0328082]
[1738938906526,21.21287449,201.65,201.55,4.9597]
[1738938906725,4.2,201.67,201.49,24.34147449]
[1738938906930,0.03625604,201.55,201.51,0.03592577]
[1738938907231,21.21287449,201.62,201.49,3.1286]
[1738938907429,21.21287449,201.62,201.2,359.21190252]
[1738938907430,0.03224523,201.55,201.51,0.03631924]
[1738938907731,21.21287449,201.56,201.44,4.9623]
[1738938907934,4.9605,201.52,201.51,0.03439441]
[1738938908233,21.21287449,201.56,201.41,4.7538]
[1738938908428,0.03644084,201.54,201.49,0.03329374]
[1738938908835,34.57999766,201.53,201.49,0.03329374]
[1738938909834,4.9605,201.52,201.49,0.03329374]
[1738938910232,34.57999766,201.53,201.49,0.03329374]
[1738938910730,34.57999766,201.53,201.41,3.2483]
[1738938911036,36.12089766,201.53,201.41,3.2483]
[1738938911334,36.12089766,201.53,201.46,4.9619]
[1738938911536,36.12089766,201.53,201.41,3.2483]
[1738938911731,34.57999766,201.53,201.41,3.2483]
[1738938911928,0.03646081,201.49,201.47,4.9617]
[1738938912134,0.03646081,201.49,201.45,0.03452791]
[1738938912537,1.5409,201.63,201.48,34.57999766]
[1738938912736,34.57999766,201.68,201.51,34.57999766]
[1738938912932,34.57999766,201.68,201.52,3.0973]
[1738938913635,4.957,201.67,201.61,4.9582]
[1738938913830,0.03433157,201.62,201.58,0.03289596]
[1738938914232,0.03433157,201.62,201.61,4.9583]
[1738938914633,0.03433157,201.62,201.58,0.03289596]
[1738938914835,0.03433157,201.62,201.58,4.99179596]
[1738938915029,0.03433157,201.62,201.58,0.03289596]
[1738938915737,34.57999766,201.6,201.48,1.5596]
[1738938916332,34.57999766,201.56,201.44,3.1119]
[1738938916937,0.03682649,201.52,201.48,0.03673064]
[1738938917638,0.03682649,201.52,201.33,193.0]
[1738938917639,34.57999766,201.49,201.34,3.2274]
[1738938917932,34.57999766,201.45,201.34,3.2274]
[1738938918535,4.963,201.42,201.34,8.1923]
[1738938918838,0.03749596,201.4,201.36,0.03211304]
[1738938919139,4.9635,201.4,201.32,4.9653]
[1738938919335,0.03170957,201.4,201.36,0.03577008]
[1738938919638,34.57999766,201.41,201.27,3.2487]
[1738938919835,4.9643,201.37,201.29,4.9661]
[1738938920034,4.9643,201.37,201.36,0.03338826]
[1738938920231,34.57999766,201.37,201.25,1.5816]
[1738938920532,34.57999766,201.37,201.2,3.1901]
[1738938920736,34.57999766,201.37,201.29,0.03660348]
[1738938921137,0.03473747,201.31,201.29,0.03660348]
[1738938921539,34.57999766,201.35,201.17,34.57999766]
[1738938921740,36.13449766,201.39,201.21,34.57999766]
[1738938921934,36.13449766,201.39,201.24,34.57999766]
[1738938922133,4.9645,201.36,201.27,4.9665]
[1738938922341,34.57999766,201.35,201.22,1.6365]
[1738938922536,34.57999766,201.31,201.17,34.57999766]
[1738938922841,34.57999766,201.27,201.17,4.969]
[1738938923239,4.9674,201.24,201.22,0.03519491]
[1738938923439,5.00249973,201.24,201.22,0.03519491]
[1738938923636,0.03509973,201.24,201.11,1.6365]
[1738938923941,0.03509973,201.24,201.21,0.03439844]
[1738938924141,1.4899,201.34,201.21,0.03439844]
[1738938924443,0.0355277,201.25,201.15,3.0945]
[1738938924644,0.0355277,201.25,201.12,0.99443118]
[1738938924941,1.5643,201.27,201.18,0.03145474]
[1738938925138,0.03176952,201.21,201.18,0.03145474]
[1738938925936,4.99996952,201.21,201.18,0.03145474]
[1738938926141,34.61176718,201.21,201.06,36.07599766]
[1738938926346,34.61176718,201.21,201.07,0.99467847]
[1738938926540,34.57999766,201.21,201.1,4.9708]
[1738938926741,34.57999766,201.21,201.07,0.99467847]
[1738938927141,34.57999766,201.18,201.07,0.99467847]
[1738938927437,34.57999766,201.15,201.07,0.99467847]
[1738938927642,1.5789,201.14,201.07,0.99467847]
[1738938928141,34.57999766,201.12,201.07,0.99467847]
[1738938928335,34.57999766,201.09,200.91,39.22219766]
[1738938928538,34.57999766,201.05,200.92,0.99542106]
[1738938928840,0.03667247,201.02,200.98,0.03634384]
[1738938929943,34.57999766,201.0,200.92,0.99542106]
[1738938930339,34.57999766,200.96,200.92,0.99542106]
[1738938930552,4.9749,200.94,200.84,26.617002]
[1738938930746,34.57999766,200.88,200.84,26.617002]
[1738938930952,34.57999766,200.88,200.84,25.247402]
[1738938931249,34.57999766,200.88,200.84,16.41601485]
[1738938931549,4.9773,200.84,200.83,22.54847816]
[1738938931753,34.57999766,200.84,200.78,163.13355666]
[1738938931946,4.9776,200.83,200.81,58.79840719]
[1738938932152,34.57999766,200.84,200.78,163.13355666]
[1738938932340,34.57999766,200.8,200.79,48.92154127]
[1738938932543,34.57999766,200.8,200.79,22.81631974]
[1738938933650,34.57999766,200.8,200.77,0.03375496]
[1738938933651,69.15999532,200.8,200.77,0.03375496]
[1738938933847,4.9785,200.79,200.77,5.496e-05]
[1738938934052,34.57999766,200.8,200.77,5.496e-05]
[1738938935544,0.033853,200.82,200.77,5.496e-05]
[1738938935944,0.033853,200.82,200.8,4.9776]
[1738938936151,0.033853,200.82,200.8,4.9576]
[1738938936354,34.57999766,200.88,200.73,34.57999766]
[1738938936550,29.44965292,200.81,200.74,4.7163]
[1738938936745,29.44965292,200.81,200.73,32.62598106]
[1738938936953,18.84975292,200.81,200.73,32.62598106]
[1738938937253,112.53856604,200.79,200.73,37.00598106]
[1738938937554,82.57686604,200.79,200.73,37.00598106]
[1738938937751,78.24279919,200.79,200.78,4.9781]
[1738938937946,56.40079919,200.79,200.78,4.9781]
[1738938938155,7.15939919,200.79,200.78,4.9781]
[1738938938355,183.63844091,200.8,200.78,4.9781]
[1738938938557,20.46061513,200.8,200.78,4.9781]
[1738938938756,0.03207599,200.81,200.8,4.9778]
[1738938938950,198.38464443,200.83,200.77,34.57999766]
[1738938939151,164.53844443,200.83,200.82,34.57999766]
[1738938939349,1.0,201.01,200.82,34.57999766]
[1738938939549,34.57999766,201.05,200.88,34.57999766]
[1738938939751,34.57999766,201.05,200.92,4.9747]
[1738938939950,34.57999766,201.01,200.88,4.38]
[1738938940255,34.61682115,201.01,200.96,0.03752293]
[1738938940555,34.57999766,201.05,200.96,0.03752293]
[1738938940755,0.03407774,201.01,200.96,0.03752293]
[1738938941350,0.03407774,201.01,200.96,34.61752059]
[1738938941546,0.03407774,201.01,200.99,4.973]
[1738938941853,0.03407774,201.01,200.96,34.61752059]
[1738938942045,133.05999766,201.13,200.96,34.61752059]
[1738938942046,4.9684,201.18,201.0,34.57999766]
[1738938942248,4.9684,201.18,201.08,34.57999766]
[1738938942249,1.0,201.18,201.08,34.57999766]
[1738938942851,4.1376,201.23,201.08,34.57999766]
[1738938943448,34.57999766,201.17,201.13,0.03574608]
[1738938943653,34.57999766,201.17,200.96,34.57999766]
[1738938943854,28.71759066,201.13,201.04,78.62865654]
[1738938944351,34.57999766,201.09,201.08,105.84402658]
[1738938944548,39.55059766,201.09,201.08,95.97572658]
[1738938944752,40.55059766,201.09,201.08,95.97572658]
[1738938944953,40.55059766,201.09,201.08,88.37842658]
[1738938945251,40.55059766,201.09,201.06,5.459e-05]
[1738938945252,4.9711,201.07,201.06,5.459e-05]
[1738938945448,69.15999532,201.1,201.05,93.0335564]
[1738938945650,34.57999766,201.06,200.98,133.28334721]
[1738938946052,34.57999766,201.06,200.87,1.6231]
[1738938946658,0.03452794,200.99,200.94,0.03209295]
[1738938948662,34.57999766,201.1,200.94,0.03209295]
[1738938948857,34.57999766,201.14,201.0,4.9727]
[1738938949153,34.57999766,201.14,200.94,34.57999766]
[1738938949360,34.57999766,201.14,201.02,4.9722]
[1738938949557,34.57999766,201.14,200.94,34.57999766]
[1738938949558,34.57999766,201.1,200.94,34.57999766]
[1738938949761,34.57999766,201.06,200.89,1.5938]
[1738938950056,34.57999766,201.02,201.0,0.03572248]
[1738938950261,34.57999766,201.02,200.89,1.5938]
[1738938950457,34.57999766,200.97,200.89,1.5938]
[1738938950958,34.57999766,201.01,200.89,1.5938]
[1738938951460,34.57999766,201.05,200.89,1.5938]
[1738938951761,0.03210026,200.97,200.93,0.03089841]
[1738938952160,39.55179766,201.05,200.9,4.9751]
[1738938952357,34.57999766,201.05,200.89,1.616]
[1738938952661,4.567e-05,200.97,200.96,4.9738]
[1738938952859,34.57999766,201.13,200.96,34.57999766]
[1738938953254,34.57999766,201.13,201.01,4.9726]
[1738938953465,34.57999766,201.13,201.02,1.4822]
[1738938954066,34.57999766,201.13,201.04,4.9716]
[1738938954263,34.57999766,201.05,200.9,34.57999766]
[1738938954467,34.57999766,201.05,200.91,3.0721]
[1738938954767,34.57999766,201.09,200.91,3.0721]
[1738938954964,34.57999766,201.09,200.94,34.57999766]
[1738938955165,34.57999766,201.09,200.91,3.0721]
[1738938955868,0.03396154,201.02,200.99,4.9731]
[1738938956069,0.03396154,201.02,200.98,0.0313944]
[1738938956663,34.57999766,201.13,200.98,0.0313944]
[1738938956864,4.9702,201.11,201.03,4.972]
[1738938957061,34.57999766,201.13,200.95,34.57999766]
[1738938957972,34.57999766,201.13,201.06,4.9713]
[1738938958169,0.03171307,201.06,201.02,0.0360171]
[1738938958371,34.57999766,201.17,201.0,1.5769]
[1738938959167,39.54869766,201.17,201.1,4.9701]
[1738938959372,34.57999766,201.17,201.0,1.5769]
[1738938959671,0.03438717,201.16,201.11,0.03691552]
[1738938959872,34.57999766,201.21,201.11,0.03691552]
[1738938960070,34.57999766,201.21,201.04,1.5365]
[1738938960274,0.03414201,201.16,201.13,4.9694]
[1738938960470,0.03414201,201.16,201.11,0.03409604]
[1738938960862,0.03414201,201.16,201.15,4.9691]
[1738938961067,133.26195826,201.27,201.12,1.4909]
[1738938961871,4.9669,201.25,201.19,4.9681]
[1738938962074,266.32195592,201.3,201.12,1.4909]
[1738938962269,0.03595173,201.24,201.12,1.4909]
[1738938962570,0.03595173,201.24,201.2,0.0370704]
[1738938963270,4.9677,201.21,201.2,0.0370704]
[1738938963469,0.03595173,201.24,201.2,0.0370704]
[1738938963664,0.03595173,201.24,201.2,5.0047704]
[1738938963871,0.03595173,201.24,201.2,0.0370704]
[1738938965069,5.173e-05,201.24,201.23,4.9672]
[1738938965373,35.49959766,201.34,201.21,1.5711]
[1738938965676,133.26195826,201.38,201.21,1.5711]
[1738938965872,34.57999766,201.4,201.22,34.57999766]
[1738938966175,200.81253739,201.43,201.26,34.57999766]
[1738938966375,199.89293739,201.43,201.26,34.57999766]
[1738938966569,199.89293739,201.43,201.38,4.9632]
[1738938966769,199.89293739,201.43,201.3,34.57999766]
[1738938966975,199.89293739,201.43,201.3,39.01999766]
[1738938967474,34.57999766,201.52,201.34,34.57999766]
[1738938967776,4.9608,201.49,201.35,3.1515]
[1738938967975,34.57999766,201.52,201.35,3.1515]
[1738938968570,34.57999766,201.48,201.35,3.1515]
[1738938968775,4.9616,201.46,201.35,3.1515]
[1738938968975,34.57999766,201.52,201.35,3.1515]
[1738938969172,0.03242314,201.43,201.4,4.9628]
[1738938969378,0.03242314,201.43,201.38,0.03308982]
[1738938969578,34.57999766,201.44,201.3,1.5821]
[1738938969776,4.9635,201.38,201.32,4.9647]
[1738938969973,34.57999766,201.4,201.3,1.5821]
[1738938970171,34.57999766,201.4,201.33,0.03434158]
[1738938970378,34.57999766,201.36,201.24,1.5887]
[1738938970575,34.57999766,201.32,201.24,1.5887]
[1738938970875,4.9656,201.3,201.21,1.526]
[1738938971076,34.57999766,201.36,201.21,1.526]
[1738938971276,34.57999766,201.36,201.18,34.57999766]
[1738938971475,34.57999766,201.36,201.19,1.5197]
[1738938971681,0.03441984,201.29,201.25,0.03735982]
[1738938972085,34.57999766,201.4,201.25,0.03735982]
[1738938972583,34.57999766,201.4,201.22,34.57999766]
[1738938973086,34.57999766,201.36,201.19,1.5197]
[1738938973486,17.9897215,201.36,201.29,0.03416736]
[1738938973984,34.57999766,201.4,201.29,0.03416736]
[1738938974281,34.57999766,201.36,201.35,53.40276224]
[1738938974481,34.57999766,201.36,201.35,52.54646224]
[1738938974682,0.03546922,201.38,201.35,52.54646224]
[1738938975086,4.9639,201.36,201.35,52.54646224]
[1738938975284,34.57999766,201.36,201.33,0.03646201]
[1738938975785,4.9644,201.34,201.33,0.03646201]
[1738938976090,34.57999766,201.36,201.2,94.67677114]
[1738938976281,34.57999766,201.29,201.2,94.67677114]
[1738938976587,4.9673,201.23,201.2,94.67677114]
[1738938976885,34.57999766,201.25,201.2,94.67677114]
[1738938977085,34.57999766,201.29,201.2,94.67677114]
[1738938977288,34.6122757,201.25,201.2,0.03248086]
[1738938977582,4.9675,201.22,201.2,0.03248086]
[1738938977788,0.03227804,201.25,201.2,0.03248086]
[1738938978493,34.57999766,201.22,201.2,8.086e-05]
[1738938978686,34.57999766,201.22,201.08,4.9706]
[1738938978886,34.57999766,201.18,201.08,4.9706]
[1738938979080,34.57999766,201.18,201.09,4.9704]
[1738938979390,34.57999766,201.22,201.06,1.58]
[1738938979982,0.03280049,201.16,201.12,0.03823774]
[1738938981191,0.03280049,201.16,201.14,4.9693]
[1738938981390,0.03280049,201.16,201.12,0.03823774]
[1738938982189,4.9696,201.13,201.12,0.03823774]
[1738938982391,0.03280049,201.16,201.12,0.03823774]
[1738938983390,0.03280049,201.16,201.15,4.9691]
[1738938983695,26.91416527,201.16,201.12,0.03823774]
[1738938983994,26.91416527,201.16,201.09,1.5344]
[1738938984690,26.91416527,201.16,201.04,34.57999766]
[1738938984886,26.91416527,201.16,201.08,32.49355273]
[1738938985084,0.1047,201.28,201.15,34.57999766]
[1738938985493,4.9654,201.31,201.25,4.9666]
[1738938985693,4.9654,201.31,201.19,34.57999766]
[1738938985883,34.57999766,201.33,201.19,34.57999766]
[1738938986289,0.03188793,201.28,201.24,0.03560747]
[1738938986697,199.89293739,201.27,201.24,0.03560747]
[1738938987091,4.9676,201.22,201.16,4.9689]
[1738938987292,34.57999766,201.25,201.11,34.57999766]
[1738938987696,34.57999766,201.21,201.05,4.46]
[1738938988287,0.03659202,201.15,201.11,0.0360895]
[1738938988592,4.9676,201.22,201.07,34.57999766]
[1738938988796,199.89293739,201.27,201.05,4.46]
[1738938988797,199.89293739,201.27,201.11,34.57999766]
[1738938988996,3.544e-05,201.15,201.11,0.03826513]
[1738938989296,34.57999766,201.22,201.07,34.57999766]
[1738938989491,199.89293739,201.27,201.11,34.57999766]
[1738938990293,8.896e-05,201.21,201.17,0.03655166]
[1738938990596,8.896e-05,201.21,201.19,34.57999766]
[1738938990899,8.896e-05,201.21,201.2,4.9679]
[1738938991292,175.10683739,201.27,201.26,4.9664]
[1738938991489,86.52028167,201.32,201.26,34.57999766]
[1738938991698,84.05228167,201.32,201.31,39.54519766]
[1738938991998,71.53248167,201.32,201.31,39.54519766]
[1738938992186,51.81368167,201.32,201.31,39.54519766]
[1738938992390,1.581,201.48,201.27,34.57999766]
[1738938992590,1.574e-05,201.34,201.31,34.57999766]
[1738938992987,4.9613,201.47,201.31,34.57999766]
[1738938993393,1.581,201.48,201.27,34.57999766]
[1738938993596,4.9628,201.41,201.32,4.9649]
[1738938993802,1.581,201.48,201.31,34.57999766]
[1738938993998,0.03134688,201.4,201.35,0.03520466]
[1738938994400,0.03134688,201.4,201.31,34.57999766]
[1738938994697,0.03134688,201.4,201.35,0.03782191]
[1738938995699,0.03134688,201.4,201.38,4.9634]
[1738938996004,0.03134688,201.4,201.39,34.57999766]
[1738938996608,0.03134688,201.4,201.39,39.54319766]
[1738938997004,1.5171,201.49,201.39,34.57999766]
[1738938997205,4.961,201.48,201.41,4.9627]
[1738938997401,1.5171,201.49,201.39,34.57999766]
[1738938998201,1.5171,201.49,201.42,0.03253588]
[1738938998404,0.03291331,201.46,201.44,4.962]
[1738938998605,1.6128,201.55,201.42,0.03253588]
[1738938998806,4.9618,201.45,201.39,58.76968054]
[1738938999004,34.57999766,201.5,201.39,58.76968054]
[1738938999602,34.57999766,201.5,201.45,5.34269823]
[1738938999908,0.03800626,201.47,201.45,5.34269823]
[1738939000208,4.9615,201.46,201.45,5.34269823]
[1738939000404,34.57999766,201.54,201.45,5.34269823]
[1738939000709,0.03587189,201.48,201.45,5.34269823]
[1738939001311,0.03587189,201.48,201.46,4.9615]
[1738939002105,0.03587189,201.48,201.44,0.03294627]
[1738939002309,0.03587189,201.48,201.47,4.9612]
[1738939002610,0.03587189,201.48,201.44,0.03294627]
[1738939003708,34.57999766,201.7,201.46,34.57999766]
[1738939003914,4.6493,201.69,201.57,4.9588]
[1738939004102,4.6493,201.69,201.55,34.57999766]
[1738939004712,4.6493,201.69,201.59,34.57999766]
[1738939004899,4.6493,201.69,201.6,4.958]
[1738939005101,0.03241726,201.64,201.6,0.03641974]
[1738939007210,0.03241726,201.64,201.61,4.9576]
[1738939007413,0.03241726,201.64,201.6,0.03641974]
[1738939008106,34.57999766,201.78,201.61,34.57999766]
[1738939008306,4.9548,201.74,201.67,4.9562]
[1738939008508,4.9548,201.74,201.61,34.57999766]
[1738939009012,1.5478,201.77,201.61,34.57999766]
[1738939009410,0.03740323,201.71,201.67,0.03484186]
[1738939010610,4.9561,201.68,201.67,0.03484186]
[1738939011110,1.5379,201.7,201.56,6.68851897]
[1738939011312,34.57999766,201.68,201.57,6.68851897]
[1738939011509,34.52438925,201.68,201.57,6.68851897]
[1738939011707,4.9585,201.58,201.57,6.68851897]
[1738939012113,4.9585,201.58,201.57,4.22221897]
[1738939013012,4.959,201.56,201.55,0.03451651]
[1738939013209,0.03176747,201.6,201.55,0.03451651]
[1738939014510,34.61176513,201.6,201.46,20.06555693]
[1738939014709,0.03176747,201.6,201.47,34.57999766]